bitfinex/quotes_SOLUSD_20250929
["timestamp","ask_amount","ask_price","bid_price","bid_amount"]
[1759109627482,2.44540381,209.86,209.82,0.66]
[1759109627996,2.44540381,209.86,209.81,16.68175968]
[1759109627997,1.72540381,209.86,209.81,16.68175968]
[1759109628177,2.44540381,209.86,209.83,0.66]
[1759109629301,2.44540381,209.86,209.83,5.42561448]
[1759109629895,2.44540381,209.86,209.83,4.76561448]
[1759109630283,2.44540381,209.86,209.81,5.4260267]
[1759109630482,0.72,209.85,209.81,5.4260267]
[1759109630894,26.0,209.83,209.79,5.42645199]
[1759109631095,26.72,209.83,209.79,5.42645199]
[1759109632689,26.72,209.83,209.79,0.66]
[1759109633485,0.72,209.83,209.79,0.66]
[1759109634194,0.72,209.83,209.8,4.76644423]
[1759109634593,26.72,209.83,209.8,4.76644423]
[1759109634784,0.72,209.83,209.8,4.76644423]
[1759109636190,0.72,209.82,209.8,4.76644423]
[1759109636706,12.63772634,209.84,209.8,4.76644423]
[1759109636897,0.72,209.83,209.8,4.76644423]
[1759109637890,0.72,209.83,209.77,16.68485223]
[1759109638092,0.72,209.83,209.78,0.66]
[1759109639510,0.72,209.83,209.8,4.76644423]
[1759109639889,0.72,209.83,209.8,5.42644423]
[1759109640494,11.91772634,209.84,209.81,0.66]
[1759109640695,26.0,209.85,209.81,0.66]
[1759109641197,26.0,209.85,209.8,4.76644423]
[1759109641410,26.0,209.85,209.81,0.66]
[1759109641599,26.72,209.85,209.82,4.76598989]
[1759109642490,0.72,209.84,209.8,0.66]
[1759109642836,0.72,209.84,209.81,0.66]
[1759109643001,26.0,209.85,209.81,0.66]
[1759109643200,26.72,209.85,209.81,0.66]
[1759109643401,0.72,209.84,209.81,0.66]
[1759109643585,0.72,209.84,209.81,5.42601812]
[1759109644893,26.0,209.85,209.81,16.68156075]
[1759109645089,26.0,209.85,209.82,0.66]
[1759109645291,0.2,209.86,209.82,0.66]
[1759109646905,0.2,209.86,209.83,16.68016966]
[1759109647112,0.2,209.86,209.84,0.66]
[1759109647309,0.2,209.86,209.85,0.66]
[1759109649301,0.2,209.86,209.85,5.42530855]
[1759109651101,0.2,209.86,209.85,4.76530855]
[1759109651501,0.2,209.86,209.85,5.42530855]
[1759109656112,0.2,209.88,209.85,17.33857993]
[1759109656313,0.2,209.89,209.86,0.72]
[1759109657606,0.2,209.89,209.87,4.76485443]
[1759109657806,0.2,209.89,209.88,0.72]
[1759109659116,0.2,209.89,209.88,5.4846274]
[1759109660005,1e-08,209.89,209.88,5.4846274]
[1759109660212,1e-08,209.91,209.88,17.39619591]
[1759109660410,1e-08,209.91,209.88,18.58627876]
[1759109660604,1e-08,209.91,209.89,0.72]
[1759109660921,1e-08,209.91,209.9,4.76417341]
[1759109661115,1e-08,209.92,209.9,4.76417341]
[1759109661311,1e-08,209.92,209.91,0.7]
[1759109663108,1e-08,209.92,209.91,5.46394645]
[1759109665015,1e-08,209.92,209.9,4.76417341]
[1759109665216,1e-08,209.92,209.9,5.46417341]
[1759109665424,1e-08,209.92,209.9,4.76417341]
[1759109666026,1e-08,209.92,209.9,5.46417341]
[1759109671922,1e-08,209.92,209.91,0.7]
[1759109673535,1e-08,209.92,209.91,5.46394645]
[1759109678839,1e-08,209.92,209.91,4.76394645]
[1759109679421,1e-08,209.92,209.91,0.7]
[1759109683541,1e-08,209.92,209.91,5.46394645]
[1759109685244,1e-08,209.92,209.91,4.76394645]
[1759109685730,1e-08,209.92,209.91,5.46394645]
[1759109686042,1e-08,209.92,209.89,36.68]
[1759109686242,0.70000001,209.92,209.89,41.4443531]
[1759109686428,0.70000001,209.92,209.89,42.1443531]
[1759109686632,1e-08,209.92,209.89,42.1443531]
[1759109688046,1e-08,209.92,209.89,54.0553541]
[1759109689743,1e-08,209.92,209.89,53.3553541]
[1759109689935,0.70000001,209.92,209.89,53.3553541]
[1759109690448,0.70000001,209.92,209.89,16.6753541]
[1759109690628,1e-08,209.92,209.89,17.3753541]
[1759109691840,1e-08,209.92,209.89,17.3553541]
[1759109692343,1e-08,209.92,209.89,16.6753541]
[1759109692548,1e-08,209.92,209.91,4.76394645]
[1759109694351,1e-08,209.92,209.9,4.76417341]
[1759109694527,1e-08,209.92,209.9,5.44417341]
[1759109698254,1e-08,209.92,209.9,4.76417341]
[1759109698441,1e-08,209.92,209.91,0.68]
[1759109698954,1e-08,209.92,209.9,4.76417341]
[1759109698955,1e-08,209.92,209.9,5.44417341]
[1759109699433,1e-08,209.92,209.91,0.68]
[1759109701652,1e-08,209.92,209.91,5.44394645]
[1759109701838,1e-08,209.92,209.91,42.10394645]
[1759109702950,1e-08,209.92,209.91,41.42394645]
[1759109703257,1e-08,209.92,209.91,42.10394645]
[1759109703432,1e-08,209.92,209.91,41.42394645]
[1759109703637,1e-08,209.92,209.91,42.10394645]
[1759109706366,1e-08,209.92,209.91,41.42394645]
[1759109706540,1e-08,209.92,209.91,42.10394645]
[1759109713763,1e-08,209.92,209.91,55.69954046]
[1759109717158,1e-08,209.92,209.91,57.60934972]
[1759109717963,1e-08,209.92,209.91,136.90934972]
[1759109732099,1e-08,209.92,209.91,100.24934972]
[1759109732391,1e-08,209.92,209.91,136.86934972]
[1759109732783,1e-08,209.97,209.92,13.59559401]
[1759109732970,1e-08,209.97,209.94,13.59559401]
[1759109733288,1e-08,209.97,209.95,36.62]
[1759109733994,1e-08,209.97,209.96,4.76281196]
[1759109734701,1e-08,209.98,209.96,5.47281196]
[1759109734876,1e-08,209.98,209.97,36.62]
[1759109736502,1e-08,209.98,209.97,41.38258513]
[1759109746808,0.2,210.07,209.97,77.8119736]
[1759109746992,0.68,210.05,209.98,0.71]
[1759109747305,0.68,210.05,209.99,36.6]
[1759109748003,0.68,210.05,210.0,16.66666666]
[1759109748204,0.68,210.05,210.01,36.6]
[1759109748413,0.2,210.07,210.01,36.6]
[1759109748414,0.68,210.04,210.01,36.6]
[1759109748592,0.2,210.07,210.02,0.71]
[1759109748801,0.2,210.07,210.03,36.6]
[1759109748802,0.88,210.07,210.03,36.6]
[1759109749115,0.68,210.06,210.03,36.6]
[1759109749700,0.2,210.07,210.03,37.31]
[1759109749891,0.88,210.07,210.04,16.66349266]
[1759109750092,0.88,210.07,210.05,36.6]
[1759109750592,0.2,210.07,210.05,36.6]
[1759109751411,1e-08,210.07,210.06,0.66]
[1759109751711,1e-08,210.07,210.06,37.26]
[1759109752095,1e-08,210.07,210.06,42.0205446]
[1759109753614,1e-08,210.07,210.06,56.52249832]
[1759109756107,1e-08,210.07,210.06,55.86249832]
[1759109760509,1e-08,210.07,210.06,19.26249832]
[1759109760710,1e-08,210.07,210.06,55.84249832]
[1759109760911,1e-08,210.07,210.06,19.26249832]
[1759109761114,1e-08,210.07,210.06,55.84249832]
[1759109762215,1e-08,210.07,210.06,56.50249832]
[1759109763592,1e-08,210.07,210.06,55.84249832]
[1759109764608,1e-08,210.07,210.06,56.50249832]
[1759109764818,1e-08,210.07,210.06,55.84249832]
[1759109765112,1e-08,210.07,210.06,56.50249832]
[1759109765491,1e-08,210.07,210.06,58.41103185]
[1759109766317,1e-08,210.07,210.06,56.50249832]
[1759109767416,1e-08,210.07,210.06,58.41103185]
[1759109767925,1e-08,210.07,210.06,56.50249832]
[1759109768110,1e-08,210.07,210.06,55.84249832]
[1759109768623,1e-08,210.07,210.06,56.50249832]
[1759109770525,1e-08,210.07,210.06,19.92249832]
[1759109770728,1e-08,210.07,210.06,56.48249832]
[1759109772599,1e-08,210.07,210.06,21.83103185]
[1759109772800,1e-08,210.07,210.06,58.39103185]
[1759109773528,1e-08,210.07,210.06,21.83103185]
[1759109773828,1e-08,210.07,210.06,58.39103185]
[1759109774130,1e-08,210.07,210.06,57.73103185]
[1759109774302,1e-08,210.07,210.06,58.39103185]
[1759109775525,1e-08,210.07,210.06,57.73103185]
[1759109776005,1e-08,210.07,210.06,58.39103185]
[1759109777104,1e-08,210.07,210.06,21.83103185]
[1759109777310,1e-08,210.07,210.06,58.39103185]
[1759109780239,1e-08,210.07,210.06,57.73103185]
[1759109780907,1e-08,210.07,210.06,58.45103185]
[1759109781833,1e-08,210.07,210.06,21.89103185]
[1759109782027,1e-08,210.07,210.06,58.45103185]
[1759109783417,1e-08,210.07,210.06,57.73103185]
[1759109783938,1e-08,210.07,210.06,21.17103185]
[1759109784112,1e-08,210.07,210.06,57.73103185]
[1759109784832,0.68000001,210.07,210.06,21.17103185]
[1759109785023,0.68000001,210.07,210.06,57.73103185]
[1759109786825,0.68000001,210.07,210.06,55.82249832]
[1759109788712,0.68000001,210.07,210.06,19.26249832]
[1759109788914,0.68000001,210.07,210.06,14.50195372]
[1759109789119,0.68000001,210.07,210.05,41.32076037]
[1759109789321,0.68,210.06,210.05,41.32076037]
[1759109789731,0.68,210.06,210.05,55.96651328]
[1759109790232,0.68,210.06,210.05,19.40651328]
[1759109790425,0.68,210.06,210.05,55.96651328]
[1759109791937,0.68,210.06,210.05,51.20575291]
[1759109792135,0.68,210.06,210.03,4.76106666]
[1759109792345,0.68,210.05,209.99,6.67130271]
[1759109792514,0.68,210.04,210.0,36.56]
[1759109792715,0.68,210.03,210.0,36.56]
[1759109792951,0.68,210.03,210.01,4.76167801]
[1759109793116,0.68,210.03,210.02,36.56]
[1759109793338,0.68,210.03,210.02,51.08332253]
[1759109794828,0.68,210.03,210.02,55.84477382]
[1759109795340,0.68,210.05,210.02,55.84477382]
[1759109795541,0.68,210.04,210.02,55.84477382]
[1759109797048,0.68,210.04,210.02,51.08332253]
[1759109797746,0.68,210.04,210.02,55.84470354]
[1759109800244,0.68,210.03,210.02,51.08332253]
[1759109800430,0.68,210.03,210.02,14.52332253]
[1759109800625,7.81790199,210.03,209.97,9.51387834]
[1759109800936,2.37662984,210.03,209.97,36.56]
[1759109801138,0.68,210.06,209.98,0.72]
[1759109801442,0.68,210.06,209.99,36.56]
[1759109801642,0.68,210.05,210.0,0.72]
[1759109801841,0.68,210.05,210.01,0.72]
[1759109802046,0.68,210.04,210.01,0.72]
[1759109802437,0.68,210.04,210.0,36.56]
[1759109802632,0.68,210.03,209.99,36.56]
[1759109802831,2.37877407,210.04,209.99,36.56]
[1759109802832,0.68,210.02,209.99,36.56]
[1759109803649,0.68,210.01,209.97,14.51389626]
[1759109803947,0.68,210.0,209.97,36.56]
[1759109804540,14.3222018,210.03,209.97,55.43273702]
[1759109804541,0.68,209.99,209.97,55.43273702]
[1759109805126,3.05877407,209.98,209.92,14.32288558]
[1759109805327,2.37877407,209.94,209.92,14.32288558]
[1759109805536,0.68,209.93,209.92,14.32288558]
[1759109805930,0.68,209.93,209.87,36.56]
[1759109806138,2.37877407,209.9,209.87,36.56]
[1759109806642,0.68,209.89,209.87,36.56]
[1759109806830,0.68,209.88,209.87,36.56]
[1759109807350,0.68,209.88,209.85,4.76516793]
[1759109807351,0.68,209.88,209.85,41.32516793]
[1759109808435,29.05877407,209.9,209.86,0.72]
[1759109808638,28.37877407,209.9,209.86,0.72]
[1759109808848,29.05877407,209.9,209.86,0.72]
[1759109809245,28.37877407,209.9,209.85,41.32516793]
[1759109809546,29.05877407,209.9,209.85,42.04516793]
[1759109809737,26.68,209.9,209.85,42.04516793]
[1759109809946,29.05877407,209.9,209.85,42.04516793]
[1759109810140,14.32972702,209.93,209.86,37.28]
[1759109810348,14.32972702,209.93,209.86,0.72]
[1759109810531,14.32972702,209.93,209.87,36.56]
[1759109810731,14.32972702,209.93,209.89,4.7644004]
[1759109811034,15.01972702,209.93,209.89,4.7644004]
[1759109811223,15.01972702,209.93,209.89,5.4744004]
[1759109812636,15.01972702,209.93,209.89,0.71]
[1759109813956,15.01972702,209.93,209.89,5.47430659]
[1759109814147,0.69,209.93,209.89,5.47430659]
[1759109814333,14.32904258,209.92,209.89,5.47430659]
[1759109814833,0.69,209.93,209.89,5.47430659]
[1759109815055,2.37877407,209.94,209.9,5.47412938]
[1759109815359,5.45308589,209.93,209.9,4.76412938]
[1759109815535,0.69,209.92,209.89,36.58]
[1759109815734,3.06877407,209.94,209.89,37.29]
[1759109815941,0.69,209.93,209.89,37.29]
[1759109816458,5.45308589,209.93,209.89,42.05426511]
[1759109817057,0.69,209.93,209.89,42.05426511]
[1759109817358,5.45308589,209.92,209.89,42.05426511]
[1759109819354,0.69,209.91,209.89,41.34426511]
[1759109820147,6.14308589,209.92,209.89,41.34426511]
[1759109821235,5.45308589,209.92,209.89,42.05426511]
[1759109821643,5.45308589,209.92,209.89,5.47426511]
[1759109821862,0.69,209.91,209.89,41.34426511]
[1759109822038,5.45308589,209.92,209.89,41.34426511]
[1759109822240,5.45308589,209.92,209.9,0.71]
[1759109822536,5.45308589,209.92,209.91,0.71]
[1759109822736,3.06877407,209.95,209.91,5.47379707]
[1759109823046,5.45308589,209.94,209.92,0.71]
[1759109823244,5.45308589,209.94,209.91,4.76379707]
[1759109823446,6.14308589,209.94,209.91,4.76379707]
[1759109823759,5.45308589,209.94,209.91,5.47379707]
[1759109824751,5.45308589,209.94,209.9,4.76417341]
[1759109825070,0.69,210.01,209.91,0.71]
[1759109825377,14.32562137,209.99,209.92,36.58]
[1759109825565,14.32562137,209.99,209.93,0.71]
[1759109826364,14.32562137,209.99,209.94,4.76326569]
[1759109826566,7.14024089,210.02,209.95,37.29]
[1759109826567,0.69,210.02,209.95,37.29]
[1759109826765,26.0,210.01,209.96,0.71]
[1759109826961,26.69,210.01,209.96,0.71]
[1759109827161,26.69,210.01,209.97,0.71]
[1759109827557,26.0,210.01,209.98,5.47235831]
[1759109827860,26.69,210.01,209.98,4.76235831]
[1759109828056,14.32425335,210.02,209.99,0.71]
[1759109828260,0.69,210.05,209.99,0.71]
[1759109828457,15.0122018,210.05,209.99,0.71]
[1759109829145,15.0122018,210.05,210.0,4.76190476]
[1759109829350,15.0122018,210.05,210.01,0.71]
[1759109829558,0.69,210.04,210.0,4.76190476]
[1759109829759,0.69,210.04,210.0,5.47190476]
[1759109829953,14.3222018,210.05,210.01,0.71]
[1759109830152,15.0122018,210.05,210.01,5.47146808]
[1759109830559,0.69,210.04,210.01,4.76146808]
[1759109830764,14.3222018,210.05,210.01,4.76146808]
[1759109830960,0.69,210.03,210.01,4.76146808]
[1759109831967,0.67,210.02,209.98,4.762327]
[1759109832275,0.67,210.01,209.96,4.76281196]
[1759109832467,0.67,210.0,209.97,36.56]
[1759109833052,7.1397816,210.04,209.96,4.76281196]
[1759109833373,26.0,210.02,209.96,41.32281196]
[1759109833577,0.67,210.01,209.96,41.32281196]
[1759109833765,0.67,210.0,209.96,41.32281196]
[1759109834579,0.67,210.0,209.96,36.56]
[1759109834778,26.0,210.02,209.97,0.69]
[1759109835077,26.67,210.02,209.98,0.69]
[1759109835954,26.67,210.02,209.99,4.76213153]
[1759109836154,26.0,210.05,210.0,0.69]
[1759109836373,0.67,210.04,210.0,0.69]
[1759109836583,26.0,210.05,209.99,4.76213153]
[1759109836758,26.0,210.05,210.01,0.69]
[1759109836959,26.67,210.05,210.01,0.69]
[1759109838074,26.67,210.05,210.02,4.76145129]
[1759109838682,1e-08,210.07,210.03,0.69]
[1759109838855,0.67000001,210.07,210.03,0.69]
[1759109839053,0.67000001,210.07,210.02,42.01145129]
[1759109839383,0.67000001,210.07,210.03,0.69]
[1759109839577,0.67000001,210.07,210.03,37.25]
[1759109839758,1e-08,210.07,210.04,4.7609979]
[1759109840452,1e-08,210.07,210.05,0.69]
[1759109840659,1e-08,210.07,210.04,5.4209979]
[1759109840871,0.68000001,210.07,210.04,4.7609979]
[1759109841576,1e-08,210.07,210.04,4.7609979]
[1759109841785,1e-08,210.07,210.04,5.4209979]
[1759109842579,0.68000001,210.07,210.04,4.7609979]
[1759109843462,1e-08,210.07,210.04,5.4209979]
[1759109844385,0.68000001,210.07,210.04,4.7609979]
[1759109844579,1e-08,210.07,209.97,40.4819736]
[1759109844784,1e-08,210.07,210.03,0.66]
[1759109844975,1e-08,210.07,210.03,37.22]
[1759109845173,1e-08,210.07,210.04,0.66]
[1759109845563,1e-08,210.07,210.04,37.22]
[1759109846072,1e-08,210.07,210.04,0.66]
[1759109846273,1e-08,210.07,210.04,37.22]
[1759109846767,1e-08,210.07,210.05,4.76077124]
[1759109846963,1e-08,210.07,210.05,5.42077124]
[1759109850892,1e-08,210.07,210.06,0.66]
[1759109852090,1e-08,210.07,210.06,5.4205446]
[1759109852477,1e-08,210.07,210.06,4.7605446]
[1759109852680,1e-08,210.07,210.05,36.56]
[1759109852884,1e-08,210.07,210.05,37.22]
[1759109854194,1e-08,210.07,210.05,5.42070391]
[1759109854493,1e-08,210.07,210.05,41.98070391]
[1759109855788,1e-08,210.07,210.06,0.66]
[1759109855988,1e-08,210.07,210.06,5.4205446]
[1759109857890,1e-08,210.07,210.06,41.9805446]
[1759109859393,1e-08,210.07,210.02,1.52203532]
[1759109859394,0.68000001,210.07,210.02,4.76145129]
[1759109859603,1e-08,210.07,210.04,36.54]
[1759109859810,1e-08,210.07,210.05,0.66]
[1759109860109,0.68,210.06,210.01,0.66]
[1759109860280,0.68,210.06,210.03,36.54]
[1759109860508,1e-08,210.07,210.03,37.2]
[1759109860687,1e-08,210.07,210.03,41.96116354]
[1759109861189,0.68,210.06,210.03,41.30116354]
[1759109861410,0.68,210.06,210.03,36.54]
[1759109862805,0.68,210.06,210.03,41.30119525]
[1759109862972,1e-08,210.07,210.04,0.66]
[1759109863475,0.68000001,210.07,210.04,0.66]
[1759109863779,1e-08,210.07,210.04,0.66]
[1759109863986,1e-08,210.07,210.03,41.30119525]
[1759109863987,0.68000001,210.07,210.03,41.30119525]
[1759109864185,0.68000001,210.07,210.03,41.96119525]
[1759109866000,1e-08,210.07,210.03,37.2]
[1759109866201,0.68000001,210.07,210.03,37.2]
[1759109867172,0.68000001,210.07,210.03,41.96121997]
[1759109869513,0.68000001,210.07,210.03,41.30121997]
[1759109869805,0.68,210.06,210.03,37.2]
[1759109869971,1e-08,210.07,210.03,0.66]
[1759109870288,1e-08,210.07,210.04,0.66]
[1759109871887,0.72000001,210.07,210.04,0.66]
[1759109872193,1e-08,210.07,210.04,0.69]
[1759109873498,39.59559402,210.07,209.96,11.90668883]
[1759109873794,26.0,210.04,209.97,0.69]
[1759109873995,26.0,210.03,209.97,0.69]
[1759109874183,26.72,210.03,209.97,0.69]
[1759109875001,26.72,210.03,209.95,0.69]
[1759109875381,4.76145129,210.02,209.95,0.69]
[1759109875584,0.72,210.01,209.95,0.69]
[1759109876394,0.72,210.01,209.95,5.45303338]
[1759109876603,0.72,210.01,209.96,0.69]
[1759109876984,0.72,210.01,209.95,4.76303338]
[1759109877183,0.72,210.02,209.96,0.69]
[1759109879278,30.76122508,210.03,209.96,5.45269676]
[1759109879488,26.0,210.03,209.97,0.69]
[1759109879701,0.72,210.02,209.97,0.69]
[1759109879901,30.76128254,210.03,209.97,0.69]
[1759109880102,0.72,210.02,209.97,0.69]
[1759109880304,0.72,210.01,209.96,4.76269676]
[1759109880505,31.48128254,210.03,209.97,0.69]
[1759109883089,31.48128254,210.03,209.97,5.4525778]
[1759109883405,42.04079574,210.05,209.99,4.76213153]
[1759109883587,42.04079574,210.05,210.0,0.69]
[1759109883788,42.04079574,210.05,210.01,0.69]
[1759109884197,1e-08,210.07,210.02,0.69]
[1759109884612,26.0,210.05,210.02,0.69]
[1759109884809,26.0,210.05,209.99,53.30746035]
[1759109884989,26.0,210.05,210.03,0.69]
[1759109886400,0.72,210.04,209.99,0.69]
[1759109886602,0.72,210.03,209.97,5.45258513]
[1759109887106,0.72,210.03,209.98,0.69]
[1759109887298,0.72,210.03,209.99,0.69]
[1759109887906,26.0,210.04,209.99,5.45205828]
[1759109888088,0.72,210.03,209.99,5.45205828]
[1759109888797,26.0,210.04,210.0,0.69]
[1759109888995,26.72,210.04,210.0,0.69]
[1759109889196,0.72,210.03,209.99,4.76205828]
[1759109889398,0.72,210.03,209.99,5.45205828]
[1759109890094,30.7611237,210.04,210.0,0.69]
[1759109890396,31.4811237,210.04,210.0,0.69]
[1759109890718,26.72,210.04,210.0,0.69]
[1759109891203,26.0,210.04,210.01,0.69]
[1759109891601,26.0,210.05,210.01,0.69]
[1759109892005,26.0,210.05,210.02,4.76145129]
[1759109892208,26.0,210.05,210.03,0.68]
[1759109892999,26.0,210.05,210.02,4.76145129]
[1759109893190,0.69,210.05,210.01,0.68]
[1759109893395,26.0,210.06,209.96,11.90658914]
[1759109893595,0.69,210.05,209.99,0.68]
[1759109894220,0.69,210.05,209.99,5.44190543]
[1759109894395,26.69,210.05,209.99,5.44190543]
[1759109894595,30.76088524,210.05,209.99,0.68]
[1759109894795,0.69,210.04,209.97,0.68]
[1759109896222,5.45113405,210.04,209.98,4.76235831]
[1759109896399,0.69,210.03,209.97,5.44255184]
[1759109896604,0.69,210.02,209.97,5.44255184]
[1759109896922,0.69,210.02,209.98,0.68]
[1759109897602,26.0,210.04,209.99,0.68]
[1759109897801,0.69,210.03,209.98,4.76223115]
[1759109898002,0.69,210.02,209.97,0.68]
[1759109898318,0.69,210.01,209.97,0.68]
[1759109898620,0.69,210.0,209.95,0.68]
[1759109898801,0.69,209.99,209.93,0.68]
[1759109899805,26.0,209.99,209.93,17.35222407]
[1759109900007,26.0,209.99,209.94,0.68]
[1759109901330,26.0,210.01,209.95,16.67063585]
[1759109901525,14.24559401,210.05,209.96,0.69]
[1759109901910,26.0,210.02,209.96,0.69]
[1759109903220,26.0,210.02,209.97,4.76258513]
[1759109903423,26.0,210.02,209.98,0.69]
[1759109903631,26.65,210.02,209.98,0.69]
[1759109903835,0.65,210.01,209.97,4.76258513]
[1759109904007,0.65,210.01,209.97,5.45258513]
[1759109904207,26.0,210.02,209.98,0.69]
[1759109904527,26.65,210.05,209.98,0.69]
[1759109904826,26.0,210.05,209.98,0.69]
[1759109905014,0.65,210.06,209.98,0.69]
[1759109905218,26.65,210.06,209.98,0.69]
[1759109905546,26.0,210.04,209.99,4.76213153]
[1759109905729,26.0,210.04,210.0,0.69]
[1759109906304,26.0,210.04,210.01,0.69]
[1759109907715,26.0,210.04,210.01,5.45149025]
[1759109908519,26.0,210.04,210.02,0.69]
[1759109909224,26.0,210.04,210.01,4.76149025]
[1759109909425,26.0,210.06,209.99,4.76190863]
[1759109909630,26.65,210.06,210.01,4.76167801]
[1759109909820,26.0,210.04,210.01,5.45167801]
[1759109910739,26.0,210.04,210.01,4.76167801]
[1759109910924,26.0,210.04,210.02,0.69]
[1759109911513,1e-08,210.07,210.03,0.69]
[1759109911713,1e-08,210.07,210.04,0.69]
[1759109912915,1e-08,210.07,210.05,4.76077124]
[1759109913323,1e-08,210.07,210.06,0.69]
[1759109914415,1e-08,210.07,210.05,4.76077124]
[1759109914713,0.65000001,210.07,210.05,4.76077124]
[1759109915027,0.65000001,210.07,210.02,17.35507951]
[1759109915731,0.65000001,210.07,210.03,0.69]
[1759109916130,1e-08,210.07,210.03,0.69]
[1759109916335,1e-08,210.07,210.04,0.69]
[1759109917024,1e-08,210.07,210.05,4.76077124]
[1759109918740,1e-08,210.07,210.06,0.69]
[1759109919441,1e-08,210.07,210.05,4.76077124]
[1759109919634,0.65,210.06,209.99,0.69]
[1759109920570,0.65,210.06,209.99,4.76213153]
[1759109920721,31.41077124,210.05,209.98,16.66788769]
[1759109920916,0.65,210.04,209.98,16.66788769]
[1759109921318,0.65,210.04,209.98,17.35788769]
[1759109921920,30.76077124,210.05,209.98,5.45235831]
[1759109922124,0.65,210.03,209.97,4.76254736]
[1759109922326,30.76077124,210.05,209.97,4.76254736]
[1759109922327,26.65,210.02,209.97,4.76254736]
[1759109922531,0.65,210.01,209.97,4.76254736]
[1759109923332,0.65,210.01,209.97,5.45254736]
[1759109924933,0.65,210.0,209.97,4.76254736]
[1759109925943,0.65,210.0,209.96,0.69]
[1759109926138,13.59559401,209.97,209.9,0.69]
[1759109926340,13.59559401,209.97,209.85,4.76530855]
[1759109926341,26.0,209.93,209.85,4.76530855]
[1759109926525,0.65,209.92,209.85,5.45530855]
[1759109926842,0.65,209.92,209.86,0.69]
[1759109927731,5.413766,209.92,209.86,5.45503264]
[1759109928145,0.65,209.91,209.85,0.69]
[1759109928330,26.0,209.89,209.85,0.69]
[1759109928727,26.0,209.89,209.84,4.86541205]
[1759109928933,26.0,209.92,209.86,0.69]
[1759109930342,26.0,209.92,209.86,5.45485795]
[1759109930524,26.65,209.92,209.86,5.45485795]
[1759109930930,0.69,209.91,209.84,5.54541787]
[1759109931133,0.69,209.9,209.84,5.54541787]
[1759109931642,0.69,209.9,209.84,4.86541787]
[1759109931819,31.45372279,209.92,209.85,0.68]
[1759109932645,31.45372279,209.92,209.85,5.44522067]
[1759109932826,0.69,209.91,209.85,5.44522067]
[1759109933026,0.69,209.9,209.84,0.1]
[1759109934146,0.69,209.9,209.84,4.86553563]
[1759109934635,0.69,209.9,209.84,5.54553563]
[1759109934832,30.7639247,209.92,209.84,5.54553563]
[1759109934833,26.0,209.92,209.85,0.68]
[1759109935583,26.69,209.92,209.85,0.68]
[1759109936948,31.45373418,209.92,209.85,5.44513399]
[1759109937129,0.69,209.91,209.85,5.44513399]
[1759109939167,30.76373418,209.92,209.85,5.44513399]
[1759109939371,0.69,209.9,209.85,5.44513399]
[1759109939562,0.69,209.89,209.85,5.44513399]
[1759109940043,31.45372185,209.92,209.86,0.68]
[1759109940371,26.0,209.89,209.85,4.76513399]
[1759109940565,26.69,209.89,209.85,5.44513399]
[1759109941042,26.0,209.9,209.85,5.44513399]
[1759109941246,0.69,209.9,209.86,0.68]
[1759109942533,26.69,209.9,209.86,0.68]
[1759109943156,26.0,209.9,209.87,4.76485443]
[1759109943361,54.980728,209.94,209.88,0.68]
[1759109943362,26.0,209.91,209.88,0.68]
[1759109943941,26.69,209.91,209.87,4.76485443]
[1759109944141,26.69,209.91,209.87,5.44485443]